[Event "*** Titled Tuesday Blitz"]
[Site "Chess.com"]
[Date "2020.05.19"]
[Round "9"]
[White "MateSchmate"]
[Black "rasmussvane"]
[Result "0-1"]
[WhiteElo "2544"]
[BlackElo "2869"]
[TimeControl "180+1"]
[EndTime "13:42:15 PDT"]
[Termination "rasmussvane won by resignation"]

1. e4 {[%clk 0:03:00.9]} 1... c6 {[%clk 0:03:00.1]} 2. Bc4 {[%clk 0:03:00.4]}
2... d5 {[%clk 0:03:01]} 3. Bb3 {[%clk 0:03:01.3]} 3... dxe4 {[%clk 0:02:59.8]}
4. Qh5 {[%clk 0:03:00.6]} 4... e6 {[%clk 0:02:56.8]} 5. Nc3 {[%clk 0:03:00.2]}
5... Nf6 {[%clk 0:02:56.5]} 6. Qh4 {[%clk 0:03:00.6]} 6... Be7 {[%clk
0:02:54.9]} 7. Nxe4 {[%clk 0:03:00.2]} 7... Nbd7 {[%clk 0:02:54.3]} 8. Nf3
{[%clk 0:02:55.1]} 8... Nxe4 {[%clk 0:02:53.9]} 9. Qxe4 {[%clk 0:02:56]} 9...
Nc5 {[%clk 0:02:54.3]} 10. Qe3 {[%clk 0:02:56.6]} 10... Nxb3 {[%clk 0:02:54.6]}
11. axb3 {[%clk 0:02:57.5]} 11... c5 {[%clk 0:02:53.7]} 12. O-O {[%clk
0:02:54.8]} 12... O-O {[%clk 0:02:53.3]} 13. d4 {[%clk 0:02:47.4]} 13... Qc7
{[%clk 0:02:42.1]} 14. dxc5 {[%clk 0:02:42.3]} 14... Bxc5 {[%clk 0:02:43]} 15.
Qf4 {[%clk 0:02:40.9]} 15... Bd6 {[%clk 0:02:40.9]} 16. Qc4 {[%clk 0:02:41]}
16... Qe7 {[%clk 0:02:30.9]} 17. Bf4 {[%clk 0:02:22.7]} 17... e5 {[%clk
0:02:26.6]} 18. Rfe1 {[%clk 0:02:17.1]} 18... Be6 {[%clk 0:02:24.3]} 19. Nxe5
{[%clk 0:01:54.5]} 19... Bxc4 {[%clk 0:02:20.7]} 20. Nxc4 {[%clk 0:01:55]} 20...
Qxe1+ {[%clk 0:02:20.9]} 21. Rxe1 {[%clk 0:01:55.5]} 21... Bxf4 {[%clk
0:02:21.7]} 0-1

[Event "*** Titled Tuesday Blitz"]
[Site "Chess.com"]
[Date "2020.05.19"]
[Round "9"]
[White "kirillshevchenko"]
[Black "TigrVShlyape"]
[Result "1/2-1/2"]
[WhiteElo "2933"]
[BlackElo "2834"]
[TimeControl "180+1"]
[EndTime "13:42:31 PDT"]
[Termination "Game drawn by agreement"]

1. e4 {[%clk 0:02:57]} 1... e5 {[%clk 0:02:57.2]} 2. Nf3 {[%clk 0:02:55.8]} 2...
Nc6 {[%clk 0:02:56.8]} 3. Bb5 {[%clk 0:02:55]} 3... Nf6 {[%clk 0:02:54.8]} 4.
O-O {[%clk 0:02:53.8]} 4... Nxe4 {[%clk 0:02:53.3]} 5. d4 {[%clk 0:02:53.9]}
5... Nd6 {[%clk 0:02:53]} 6. Bxc6 {[%clk 0:02:54.3]} 6... dxc6 {[%clk
0:02:53.4]} 7. dxe5 {[%clk 0:02:54.9]} 7... Nf5 {[%clk 0:02:53.5]} 8. Qxd8+
{[%clk 0:02:55.8]} 8... Kxd8 {[%clk 0:02:53.4]} 9. Nc3 {[%clk 0:02:56.7]} 9...
Ke8 {[%clk 0:02:42.2]} 10. h3 {[%clk 0:02:56.3]} 10... Ne7 {[%clk 0:02:39.4]}
11. a4 {[%clk 0:02:50]} 11... Ng6 {[%clk 0:02:30.5]} 12. a5 {[%clk 0:02:47.2]}
12... Be6 {[%clk 0:02:18.5]} 13. Be3 {[%clk 0:02:38.6]} 13... h6 {[%clk
0:02:12.7]} 14. Rfd1 {[%clk 0:02:25.3]} 14... Be7 {[%clk 0:02:11.9]} 15. Nd4
{[%clk 0:01:45.6]} 1/2-1/2

[Event "*** Titled Tuesday Blitz"]
[Site "Chess.com"]
[Date "2020.05.19"]
[Round "9"]
[White "ChessBitl"]
[Black "MPGM"]
[Result "1/2-1/2"]
[WhiteElo "2362"]
[BlackElo "2520"]
[TimeControl "180+1"]
[EndTime "13:42:32 PDT"]
[Termination "Game drawn by repetition"]

1. e4 {[%clk 0:03:00.4]} 1... c6 {[%clk 0:02:57.3]} 2. d4 {[%clk 0:02:59.7]}
2... d5 {[%clk 0:02:58.2]} 3. Nd2 {[%clk 0:03:00]} 3... dxe4 {[%clk 0:02:58.6]}
4. Nxe4 {[%clk 0:03:00.5]} 4... Nf6 {[%clk 0:02:59.5]} 5. Nxf6+ {[%clk
0:03:00.5]} 5... exf6 {[%clk 0:03:00.4]} 6. Bc4 {[%clk 0:03:00.3]} 6... Bd6
{[%clk 0:02:57.9]} 7. Qh5 {[%clk 0:02:59.8]} 7... O-O {[%clk 0:02:56]} 8. Ne2
{[%clk 0:02:55.1]} 8... g6 {[%clk 0:02:43.5]} 9. Qf3 {[%clk 0:02:54.1]} 9... Re8
{[%clk 0:02:38.3]} 10. Be3 {[%clk 0:02:49.5]} 10... Be6 {[%clk 0:02:37.6]} 11.
Bxe6 {[%clk 0:02:40.7]} 11... Rxe6 {[%clk 0:02:38.5]} 12. O-O-O {[%clk
0:02:40.7]} 12... Re8 {[%clk 0:02:36.6]} 13. Kb1 {[%clk 0:02:40]} 13... Nd7
{[%clk 0:02:35.5]} 14. h4 {[%clk 0:02:40.1]} 14... Qe7 {[%clk 0:02:23.2]} 15. h5
{[%clk 0:02:37.3]} 15... g5 {[%clk 0:02:19.6]} 16. Ng3 {[%clk 0:02:33.2]} 16...
Bxg3 {[%clk 0:02:19]} 17. Qxg3 {[%clk 0:02:33.1]} 17... Nf8 {[%clk 0:02:06.5]}
18. Rhe1 {[%clk 0:02:30.3]} 18... Qd7 {[%clk 0:02:06.4]} 19. Bxg5 {[%clk
0:02:19.3]} 19... fxg5 {[%clk 0:02:03.4]} 20. Qxg5+ {[%clk 0:02:19.1]} 20... Kh8
{[%clk 0:02:00.7]} 21. Qf6+ {[%clk 0:02:19.3]} 21... Kg8 {[%clk 0:02:01]} 22.
Qg5+ {[%clk 0:02:19.7]} 22... Kh8 {[%clk 0:01:40.4]} 23. Qf6+ {[%clk 0:02:19.6]}
23... Kg8 {[%clk 0:01:41]} 24. Qg5+ {[%clk 0:02:19.8]} 1/2-1/2

[Event "*** Titled Tuesday Blitz"]
[Site "Chess.com"]
[Date "2020.05.19"]
[Round "9"]
[White "Orest_Vovk"]
[Black "valeriocarnicelli"]
[Result "0-1"]
[WhiteElo "2391"]
[BlackElo "2564"]
[TimeControl "180+1"]
[EndTime "13:42:40 PDT"]
[Termination "valeriocarnicelli won by resignation"]

1. e4 {[%clk 0:03:00.9]} 1... e5 {[%clk 0:02:39.8]} 2. Bc4 {[%clk 0:02:57.4]}
2... Nc6 {[%clk 0:02:38.9]} 3. a3 {[%clk 0:02:54.6]} 3... Nf6 {[%clk 0:02:38.6]}
4. d3 {[%clk 0:02:54.7]} 4... Bc5 {[%clk 0:02:38.5]} 5. h3 {[%clk 0:02:53.6]}
5... d6 {[%clk 0:02:36.7]} 6. Nf3 {[%clk 0:02:53.3]} 6... a6 {[%clk 0:02:36.7]}
7. O-O {[%clk 0:02:52.8]} 7... Ba7 {[%clk 0:02:36.6]} 8. Be3 {[%clk 0:02:48.1]}
8... h6 {[%clk 0:02:35.2]} 9. Bxa7 {[%clk 0:02:47.1]} 9... Nxa7 {[%clk
0:02:32.1]} 10. Nc3 {[%clk 0:02:44.4]} 10... Nc6 {[%clk 0:02:31.6]} 11. Nd5
{[%clk 0:02:34.1]} 11... Nxd5 {[%clk 0:02:29.6]} 12. Bxd5 {[%clk 0:02:33.5]}
12... Ne7 {[%clk 0:02:28]} 13. Bxf7+ {[%clk 0:02:22.8]} 13... Kxf7 {[%clk
0:02:26.5]} 14. d4 {[%clk 0:02:15.6]} 14... Ng6 {[%clk 0:02:23.8]} 15. c3 {[%clk
0:02:09.3]} 15... Rf8 {[%clk 0:02:23.4]} 16. Nh2 {[%clk 0:02:04.9]} 16... Kg8
{[%clk 0:02:23]} 17. Qh5 {[%clk 0:01:57.6]} 17... Nf4 {[%clk 0:02:22.3]} 18. Qd1
{[%clk 0:01:54.9]} 18... Qg5 {[%clk 0:02:03.4]} 19. Ng4 {[%clk 0:01:51.5]} 19...
h5 {[%clk 0:02:02.7]} 20. Ne3 {[%clk 0:01:51.3]} 20... Bxh3 {[%clk 0:02:02.1]}
21. Qf3 {[%clk 0:01:50]} 21... Bg4 {[%clk 0:02:01.1]} 22. Qg3 {[%clk 0:01:49.8]}
22... Ne2+ {[%clk 0:02:01]} 0-1

[Event "*** Titled Tuesday Blitz"]
[Site "Chess.com"]
[Date "2020.05.19"]
[Round "9"]
[White "Titus369"]
[Black "Borsuk_Konstantin"]
[Result "1-0"]
[WhiteElo "2527"]
[BlackElo "2625"]
[TimeControl "180+1"]
[EndTime "13:42:46 PDT"]
[Termination "Titus369 won by resignation"]

1. e4 {[%clk 0:03:00.9]} 1... e6 {[%clk 0:02:56.8]} 2. d4 {[%clk 0:03:00.8]}
2... d5 {[%clk 0:02:57.2]} 3. Nd2 {[%clk 0:03:01.4]} 3... Nf6 {[%clk 0:02:56.9]}
4. e5 {[%clk 0:03:01.3]} 4... Nfd7 {[%clk 0:02:57.4]} 5. Bd3 {[%clk 0:03:01.9]}
5... c5 {[%clk 0:02:58]} 6. c3 {[%clk 0:03:02.6]} 6... Nc6 {[%clk 0:02:58.4]} 7.
Ne2 {[%clk 0:03:03.3]} 7... b6 {[%clk 0:02:57.9]} 8. O-O {[%clk 0:03:01]} 8...
cxd4 {[%clk 0:02:58.2]} 9. cxd4 {[%clk 0:03:01]} 9... Nb4 {[%clk 0:02:58.8]} 10.
Bb1 {[%clk 0:03:00.8]} 10... Ba6 {[%clk 0:02:59.3]} 11. Nf3 {[%clk 0:02:50.9]}
11... Qc7 {[%clk 0:02:58.3]} 12. a3 {[%clk 0:02:50.5]} 12... Nc6 {[%clk
0:02:57.7]} 13. Re1 {[%clk 0:02:48.1]} 13... Rc8 {[%clk 0:02:47.7]} 14. Nc3
{[%clk 0:02:48.1]} 14... Ndb8 {[%clk 0:02:38.6]} 15. Ng5 {[%clk 0:02:24.7]}
15... g6 {[%clk 0:02:34.8]} 16. Kh1 {[%clk 0:01:54.3]} 16... Nd8 {[%clk
0:02:29.9]} 17. f4 {[%clk 0:01:53.3]} 17... h6 {[%clk 0:02:23.4]} 18. Nf3 {[%clk
0:01:48.9]} 18... Nbc6 {[%clk 0:02:22.8]} 19. g4 {[%clk 0:01:37.9]} 19... h5
{[%clk 0:02:22.4]} 20. g5 {[%clk 0:01:38.2]} 20... Ne7 {[%clk 0:02:13.3]} 21.
Qa4+ {[%clk 0:01:36.2]} 1-0

[Event "*** Titled Tuesday Blitz"]
[Site "Chess.com"]
[Date "2020.05.19"]
[Round "9"]
[White "Raja3401"]
[Black "MrTattaglia"]
[Result "1/2-1/2"]
[WhiteElo "2745"]
[BlackElo "3006"]
[TimeControl "180+1"]
[EndTime "13:42:58 PDT"]
[Termination "Game drawn by agreement"]

1. e4 {[%clk 0:03:00.9]} 1... e5 {[%clk 0:02:59.2]} 2. Nf3 {[%clk 0:02:58.6]}
2... Nc6 {[%clk 0:02:59.5]} 3. Bb5 {[%clk 0:02:46.2]} 3... a6 {[%clk 0:02:59.2]}
4. Ba4 {[%clk 0:02:46.4]} 4... Nf6 {[%clk 0:02:59.3]} 5. O-O {[%clk 0:02:45.8]}
5... Be7 {[%clk 0:02:59.5]} 6. d3 {[%clk 0:02:45.2]} 6... b5 {[%clk 0:02:58.6]}
7. Bb3 {[%clk 0:02:45.2]} 7... d6 {[%clk 0:02:59.2]} 8. a3 {[%clk 0:02:45.3]}
8... O-O {[%clk 0:02:58.4]} 9. Nc3 {[%clk 0:02:45.1]} 9... Bg4 {[%clk
0:02:58.8]} 10. Be3 {[%clk 0:02:44.4]} 10... Nd4 {[%clk 0:02:52]} 11. Bxd4
{[%clk 0:02:44.4]} 11... exd4 {[%clk 0:02:52.9]} 12. Nd5 {[%clk 0:02:44.9]}
12... Nd7 {[%clk 0:02:53.2]} 13. h3 {[%clk 0:02:43.6]} 13... Bxf3 {[%clk
0:02:53.7]} 14. Qxf3 {[%clk 0:02:44.4]} 14... a5 {[%clk 0:02:54.6]} 15. a4
{[%clk 0:02:35.4]} 15... b4 {[%clk 0:02:52.1]} 16. Qg3 {[%clk 0:02:29.4]} 16...
c6 {[%clk 0:02:50.8]} 17. Nxe7+ {[%clk 0:02:27.8]} 17... Qxe7 {[%clk 0:02:51.7]}
18. f4 {[%clk 0:02:28.7]} 18... Kh8 {[%clk 0:02:51]} 19. Rae1 {[%clk 0:02:27.7]}
19... Nc5 {[%clk 0:02:51]} 20. e5 {[%clk 0:02:09.6]} 20... Nxb3 {[%clk
0:02:50.6]} 21. cxb3 {[%clk 0:02:09.4]} 21... Rae8 {[%clk 0:02:44.7]} 22. Qf3
{[%clk 0:02:05.2]} 22... dxe5 {[%clk 0:02:33]} 23. Rxe5 {[%clk 0:01:43.4]} 23...
Qd6 {[%clk 0:02:30.2]} 24. Rfe1 {[%clk 0:01:38.2]} 24... Re6 {[%clk 0:02:30.2]}
1/2-1/2

[Event "*** Titled Tuesday Blitz"]
[Site "Chess.com"]
[Date "2020.05.19"]
[Round "9"]
[White "wonderfultime"]
[Black "A-Fier"]
[Result "1-0"]
[WhiteElo "2995"]
[BlackElo "2735"]
[TimeControl "180+1"]
[EndTime "13:43:00 PDT"]
[Termination "wonderfultime won by resignation"]

1. d4 {[%clk 0:03:00.9]} 1... Nf6 {[%clk 0:02:59.8]} 2. Nf3 {[%clk 0:03:01]}
2... g6 {[%clk 0:02:57]} 3. Bg5 {[%clk 0:03:01.2]} 3... Bg7 {[%clk 0:02:57]} 4.
Nbd2 {[%clk 0:03:01.5]} 4... c5 {[%clk 0:02:55.9]} 5. c3 {[%clk 0:03:01.6]} 5...
Qb6 {[%clk 0:02:47.7]} 6. Qb3 {[%clk 0:02:53.7]} 6... O-O {[%clk 0:02:46.2]} 7.
e3 {[%clk 0:02:51.8]} 7... d6 {[%clk 0:02:45.7]} 8. Bd3 {[%clk 0:02:49.4]} 8...
Be6 {[%clk 0:02:45.9]} 9. Qa3 {[%clk 0:02:49.2]} 9... Nc6 {[%clk 0:02:41.1]} 10.
O-O {[%clk 0:02:49.3]} 10... Rac8 {[%clk 0:02:38.8]} 11. Rfd1 {[%clk 0:02:46.3]}
11... cxd4 {[%clk 0:02:35.2]} 12. exd4 {[%clk 0:02:44.3]} 12... h6 {[%clk
0:02:34.1]} 13. Bxf6 {[%clk 0:02:41.7]} 13... Bxf6 {[%clk 0:02:32.5]} 14. Re1
{[%clk 0:02:42.4]} 14... Bd5 {[%clk 0:02:23.8]} 15. Re2 {[%clk 0:02:28.2]} 15...
Na5 {[%clk 0:02:17.6]} 16. Rae1 {[%clk 0:02:24.1]} 16... Nc4 {[%clk 0:02:16.2]}
17. Nxc4 {[%clk 0:02:09.4]} 17... Bxc4 {[%clk 0:02:16.2]} 18. Bxc4 {[%clk
0:02:10.3]} 18... Rxc4 {[%clk 0:02:17.1]} 19. Nd2 {[%clk 0:02:10.3]} 19... Rc7
{[%clk 0:02:17.7]} 20. Ne4 {[%clk 0:02:07.9]} 20... Bg7 {[%clk 0:02:16.9]} 21.
h4 {[%clk 0:02:07.3]} 21... d5 {[%clk 0:02:11.4]} 22. Nd2 {[%clk 0:01:54]} 22...
e6 {[%clk 0:02:10.2]} 23. Nf3 {[%clk 0:01:53.4]} 23... Qa6 {[%clk 0:02:03.7]}
24. Qb3 {[%clk 0:01:52.6]} 24... b5 {[%clk 0:02:02.6]} 25. a3 {[%clk 0:01:50.1]}
25... Qa4 {[%clk 0:02:01.6]} 26. Qa2 {[%clk 0:01:49]} 26... a5 {[%clk
0:02:00.8]} 27. b3 {[%clk 0:01:49.1]} 1-0

[Event "*** Titled Tuesday Blitz"]
[Site "Chess.com"]
[Date "2020.05.19"]
[Round "9"]
[White "Ana_Berke"]
[Black "Belka1989"]
[Result "1-0"]
[WhiteElo "2108"]
[BlackElo "2118"]
[TimeControl "180+1"]
[EndTime "13:43:00 PDT"]
[Termination "Ana_Berke won by resignation"]

1. e4 {[%clk 0:03:00.9]} 1... e5 {[%clk 0:02:59.9]} 2. Nf3 {[%clk 0:02:59.8]}
2... Nc6 {[%clk 0:03:00.4]} 3. Nc3 {[%clk 0:02:59.5]} 3... Nf6 {[%clk
0:03:00.3]} 4. Bb5 {[%clk 0:02:59.5]} 4... Nd4 {[%clk 0:03:00.7]} 5. Nxd4 {[%clk
0:02:58.9]} 5... exd4 {[%clk 0:02:59.4]} 6. e5 {[%clk 0:02:59.4]} 6... dxc3
{[%clk 0:02:48.1]} 7. exf6 {[%clk 0:02:59]} 7... Qxf6 {[%clk 0:02:38.7]} 8. dxc3
{[%clk 0:02:54.1]} 8... c6 {[%clk 0:02:15.1]} 9. Bd3 {[%clk 0:02:52.9]} 9... d5
{[%clk 0:02:07.5]} 10. O-O {[%clk 0:02:52.6]} 10... Bc5 {[%clk 0:02:04.1]} 11.
Qh5 {[%clk 0:02:40.8]} 11... Be6 {[%clk 0:01:34.8]} 12. Bg5 {[%clk 0:02:37.3]}
12... Qe5 {[%clk 0:01:24.8]} 13. Rae1 {[%clk 0:02:35]} 13... Qc7 {[%clk
0:01:02]} 14. Rxe6+ {[%clk 0:02:31.8]} 14... Kd7 {[%clk 0:00:53.6]} 15. Qxf7+
{[%clk 0:02:29.5]} 15... Kc8 {[%clk 0:00:46.8]} 16. Re8+ {[%clk 0:02:29.4]}
16... Rxe8 {[%clk 0:00:44.7]} 1-0

[Event "*** Titled Tuesday Blitz"]
[Site "Chess.com"]
[Date "2020.05.19"]
[Round "9"]
[White "Robert_Chessmood"]
[Black "chessplayer9919"]
[Result "1-0"]
[WhiteElo "2874"]
[BlackElo "2504"]
[TimeControl "180+1"]
[EndTime "13:43:01 PDT"]
[Termination "Robert_Chessmood won by resignation"]

1. e4 {[%clk 0:03:00.9]} 1... c6 {[%clk 0:02:56.7]} 2. Nf3 {[%clk 0:03:00.3]}
2... d5 {[%clk 0:02:56.4]} 3. d3 {[%clk 0:03:00.9]} 3... dxe4 {[%clk 0:02:55.3]}
4. dxe4 {[%clk 0:03:01.8]} 4... Qxd1+ {[%clk 0:02:56]} 5. Kxd1 {[%clk
0:03:02.7]} 5... Bg4 {[%clk 0:02:56.3]} 6. Be2 {[%clk 0:03:02.4]} 6... Nd7
{[%clk 0:02:55]} 7. Ne1 {[%clk 0:03:02.6]} 7... Bxe2+ {[%clk 0:02:54.6]} 8. Kxe2
{[%clk 0:03:03.5]} 8... e5 {[%clk 0:02:55.5]} 9. Nd3 {[%clk 0:03:03.3]} 9... f6
{[%clk 0:02:55.4]} 10. Be3 {[%clk 0:03:03.2]} 10... O-O-O {[%clk 0:02:55.1]} 11.
Nd2 {[%clk 0:03:03.1]} 11... b6 {[%clk 0:02:55.1]} 12. a4 {[%clk 0:03:02.8]}
12... Kb7 {[%clk 0:02:53.6]} 13. a5 {[%clk 0:03:00.1]} 13... b5 {[%clk
0:02:51.1]} 14. a6+ {[%clk 0:03:00.6]} 14... Ka8 {[%clk 0:02:50.5]} 15. Nb3
{[%clk 0:03:00.8]} 15... Nb6 {[%clk 0:02:45.7]} 16. Rhd1 {[%clk 0:02:52.5]}
16... Ne7 {[%clk 0:02:22]} 17. Ndc5 {[%clk 0:02:43.4]} 17... Rc8 {[%clk
0:01:54]} 18. Na5 {[%clk 0:02:43.3]} 18... Ng6 {[%clk 0:01:35]} 19. g3 {[%clk
0:02:42.3]} 19... Bxc5 {[%clk 0:01:14.8]} 20. Bxc5 {[%clk 0:02:42.3]} 20... Na4
{[%clk 0:01:15.7]} 21. Rxa4 {[%clk 0:02:39.4]} 21... bxa4 {[%clk 0:01:15.5]} 22.
Rd7 {[%clk 0:02:39.9]} 22... Rhd8 {[%clk 0:00:59.5]} 23. Rxa7+ {[%clk
0:02:39.4]} 23... Kb8 {[%clk 0:00:59.4]} 24. Rb7+ {[%clk 0:02:39.9]} 24... Ka8
{[%clk 0:00:59.6]} 25. Nc4 {[%clk 0:02:40.5]} 1-0

[Event "*** Titled Tuesday Blitz"]
[Site "Chess.com"]
[Date "2020.05.19"]
[Round "9"]
[White "okriak"]
[Black "MFguimaraes"]
[Result "1-0"]
[WhiteElo "2744"]
[BlackElo "2500"]
[TimeControl "180+1"]
[EndTime "13:43:04 PDT"]
[Termination "okriak won by resignation"]

1. e4 {[%clk 0:03:00.9]} 1... e5 {[%clk 0:02:59.8]} 2. Nf3 {[%clk 0:03:00.5]}
2... Nc6 {[%clk 0:03:00.1]} 3. d4 {[%clk 0:03:00.5]} 3... exd4 {[%clk
0:03:00.1]} 4. Nxd4 {[%clk 0:03:01.1]} 4... Bb4+ {[%clk 0:03:00.7]} 5. c3 {[%clk
0:03:00.5]} 5... Bc5 {[%clk 0:03:01.3]} 6. Be3 {[%clk 0:02:59.8]} 6... Bb6
{[%clk 0:03:00]} 7. Nf5 {[%clk 0:02:59.6]} 7... g6 {[%clk 0:02:59.6]} 8. Bxb6
{[%clk 0:02:54.7]} 8... axb6 {[%clk 0:02:59.1]} 9. Ne3 {[%clk 0:02:55.3]} 9...
Nf6 {[%clk 0:02:59.4]} 10. Bd3 {[%clk 0:02:54.9]} 10... O-O {[%clk 0:02:57.4]}
11. c4 {[%clk 0:02:53.9]} 11... d6 {[%clk 0:02:53.5]} 12. Nc3 {[%clk 0:02:53.8]}
12... Ne5 {[%clk 0:02:51.1]} 13. Be2 {[%clk 0:02:51.2]} 13... h5 {[%clk
0:02:48]} 14. f3 {[%clk 0:02:48.3]} 14... Kg7 {[%clk 0:02:43.5]} 15. Qd4 {[%clk
0:02:46.4]} 15... Nc6 {[%clk 0:02:37]} 16. Qd2 {[%clk 0:02:45.8]} 16... Be6
{[%clk 0:02:31.9]} 17. O-O {[%clk 0:02:45.2]} 17... h4 {[%clk 0:02:31.4]} 18. h3
{[%clk 0:02:44.6]} 18... Nh5 {[%clk 0:02:29.7]} 19. f4 {[%clk 0:02:44.7]} 19...
Ng3 {[%clk 0:02:28.3]} 20. Rf2 {[%clk 0:02:43.6]} 20... Qf6 {[%clk 0:02:13.8]}
21. f5 {[%clk 0:02:40.9]} 21... Bd7 {[%clk 0:01:53.6]} 22. Ng4 {[%clk
0:02:40.5]} 22... Qd4 {[%clk 0:01:48]} 23. Qh6+ {[%clk 0:02:38.2]} 23... Kg8
{[%clk 0:01:47.5]} 24. Nd5 {[%clk 0:02:15.9]} 24... Nxe2+ {[%clk 0:01:42.1]} 25.
Kh2 {[%clk 0:02:14.8]} 25... Qg7 {[%clk 0:01:37.8]} 26. Ndf6+ {[%clk 0:02:11.8]}
1-0

[Event "*** Titled Tuesday Blitz"]
[Site "Chess.com"]
[Date "2020.05.19"]
[Round "9"]
[White "Aikiigm"]
[Black "Baby_Legs"]
[Result "0-1"]
[WhiteElo "2535"]
[BlackElo "2708"]
[TimeControl "180+1"]
[EndTime "13:43:11 PDT"]
[Termination "Baby_Legs won by resignation"]

1. e4 {[%clk 0:03:00.9]} 1... c6 {[%clk 0:02:59.2]} 2. Qf3 {[%clk 0:02:59.1]}
2... g6 {[%clk 0:02:55.2]} 3. Nc3 {[%clk 0:03:00]} 3... Bg7 {[%clk 0:02:55]} 4.
h4 {[%clk 0:02:58.1]} 4... h5 {[%clk 0:02:54.5]} 5. Nh3 {[%clk 0:02:57.8]} 5...
d6 {[%clk 0:02:53.2]} 6. Ng5 {[%clk 0:02:57.1]} 6... Nf6 {[%clk 0:02:53.3]} 7.
d3 {[%clk 0:02:56.8]} 7... c5 {[%clk 0:02:50.5]} 8. Be3 {[%clk 0:02:54.5]} 8...
Nc6 {[%clk 0:02:50.4]} 9. Qd1 {[%clk 0:02:54.6]} 9... Rb8 {[%clk 0:02:46.8]} 10.
Be2 {[%clk 0:02:53.8]} 10... b5 {[%clk 0:02:46.6]} 11. f3 {[%clk 0:02:54]} 11...
b4 {[%clk 0:02:45.2]} 12. Nd5 {[%clk 0:02:53.1]} 12... Nxd5 {[%clk 0:02:38.2]}
13. exd5 {[%clk 0:02:52.7]} 13... Ne5 {[%clk 0:02:34.1]} 14. Qd2 {[%clk
0:02:52.7]} 14... a5 {[%clk 0:02:29.4]} 15. c4 {[%clk 0:02:39.3]} 15... bxc3
{[%clk 0:02:25.3]} 16. bxc3 {[%clk 0:02:39.2]} 16... Qc7 {[%clk 0:02:10.1]} 17.
O-O {[%clk 0:02:36.6]} 17... O-O {[%clk 0:02:09.5]} 18. c4 {[%clk 0:02:35.2]}
18... Bf5 {[%clk 0:02:02.7]} 19. Rab1 {[%clk 0:02:28.8]} 19... Rxb1 {[%clk
0:01:59.5]} 20. Rxb1 {[%clk 0:02:29.7]} 20... Nxc4 {[%clk 0:01:57]} 21. dxc4
{[%clk 0:02:23.9]} 21... Bxb1 {[%clk 0:01:57.9]} 22. g4 {[%clk 0:02:23.1]} 22...
Rb8 {[%clk 0:01:56.7]} 23. gxh5 {[%clk 0:02:23.4]} 23... gxh5 {[%clk 0:01:55.7]}
24. Bd3 {[%clk 0:02:22.4]} 24... Qb6 {[%clk 0:01:49.9]} 25. Bf2 {[%clk
0:01:40.2]} 25... Bxd3 {[%clk 0:01:48.2]} 26. Qxd3 {[%clk 0:01:40.2]} 26... Qb1+
{[%clk 0:01:48.6]} 0-1

[Event "*** Titled Tuesday Blitz"]
[Site "Chess.com"]
[Date "2020.05.19"]
[Round "9"]
[White "Goryachkina"]
[Black "pastouche06"]
[Result "1-0"]
[WhiteElo "2630"]
[BlackElo "2451"]
[TimeControl "180+1"]
[EndTime "13:43:24 PDT"]
[Termination "Goryachkina won by resignation"]

1. d4 {[%clk 0:03:00.9]} 1... Nf6 {[%clk 0:02:57.9]} 2. c4 {[%clk 0:02:59.1]}
2... e6 {[%clk 0:02:57.7]} 3. Nf3 {[%clk 0:02:58.9]} 3... d5 {[%clk 0:02:57.7]}
4. Nc3 {[%clk 0:02:59.3]} 4... dxc4 {[%clk 0:02:56.7]} 5. e4 {[%clk 0:02:58]}
5... Bb4 {[%clk 0:02:56.5]} 6. Bg5 {[%clk 0:02:56.3]} 6... c5 {[%clk 0:02:54.1]}
7. Bxc4 {[%clk 0:02:54]} 7... cxd4 {[%clk 0:02:52.7]} 8. Nxd4 {[%clk 0:02:53.8]}
8... Bxc3+ {[%clk 0:02:51.8]} 9. bxc3 {[%clk 0:02:53.2]} 9... Qa5 {[%clk
0:02:51.8]} 10. Bb5+ {[%clk 0:02:49.8]} 10... Nbd7 {[%clk 0:02:46.5]} 11. Bxf6
{[%clk 0:02:44.7]} 11... Qxc3+ {[%clk 0:02:43.7]} 12. Kf1 {[%clk 0:02:44.9]}
12... gxf6 {[%clk 0:02:44.3]} 13. h4 {[%clk 0:02:44.6]} 13... Qb4 {[%clk
0:02:36.6]} 14. Rh3 {[%clk 0:02:39.7]} 14... Ke7 {[%clk 0:02:18.4]} 15. Rb1
{[%clk 0:02:34.2]} 15... Qd6 {[%clk 0:02:18.4]} 16. Rd3 {[%clk 0:01:53.6]} 16...
Qh2 {[%clk 0:02:14.1]} 17. Bxd7 {[%clk 0:01:50.6]} 17... Qh1+ {[%clk 0:02:01.2]}
18. Ke2 {[%clk 0:01:49.4]} 18... Qxd1+ {[%clk 0:02:02]} 19. Rdxd1 {[%clk
0:01:44.1]} 19... Bxd7 {[%clk 0:02:02.9]} 20. Rxb7 {[%clk 0:01:43.3]} 20... Ke8
{[%clk 0:01:58.4]} 21. Nf5 {[%clk 0:01:36.3]} 21... exf5 {[%clk 0:01:53.2]} 22.
Rdxd7 {[%clk 0:01:35.8]} 22... fxe4 {[%clk 0:01:53.7]} 23. Re7+ {[%clk
0:01:35.8]} 23... Kd8 {[%clk 0:01:51.6]} 24. Rxf7 {[%clk 0:01:35.3]} 1-0

[Event "*** Titled Tuesday Blitz"]
[Site "Chess.com"]
[Date "2020.05.19"]
[Round "9"]
[White "Quiet_Desperation"]
[Black "JoachimMouhamad"]
[Result "0-1"]
[WhiteElo "2091"]
[BlackElo "2322"]
[TimeControl "180+1"]
[EndTime "13:43:24 PDT"]
[Termination "JoachimMouhamad won by resignation"]

1. e4 {[%clk 0:03:00.9]} 1... e5 {[%clk 0:02:59.6]} 2. Nf3 {[%clk 0:03:00.6]}
2... Nc6 {[%clk 0:02:59.9]} 3. Bc4 {[%clk 0:03:00.3]} 3... Nf6 {[%clk
0:02:53.5]} 4. d4 {[%clk 0:02:59.1]} 4... exd4 {[%clk 0:02:50.1]} 5. Ng5 {[%clk
0:02:59.2]} 5... Ne5 {[%clk 0:02:39.4]} 6. Bb3 {[%clk 0:02:56.2]} 6... h6 {[%clk
0:02:36.1]} 7. f4 {[%clk 0:02:56.1]} 7... hxg5 {[%clk 0:02:34.8]} 8. fxe5 {[%clk
0:02:56.3]} 8... Nxe4 {[%clk 0:02:27.2]} 9. O-O {[%clk 0:02:41.8]} 9... d5
{[%clk 0:02:23.2]} 10. Nd2 {[%clk 0:02:41.6]} 10... Nxd2 {[%clk 0:02:18.9]} 11.
Bxd2 {[%clk 0:02:40.3]} 11... Be6 {[%clk 0:02:17.1]} 12. Qe2 {[%clk 0:02:24.9]}
12... Be7 {[%clk 0:02:06.6]} 13. Qb5+ {[%clk 0:02:19.2]} 13... Kf8 {[%clk
0:01:54.3]} 14. Qxb7 {[%clk 0:02:17.5]} 14... c5 {[%clk 0:01:51.2]} 15. Qc6
{[%clk 0:02:06.3]} 15... Kg8 {[%clk 0:01:32.6]} 16. Rxf7 {[%clk 0:01:59.7]}
16... Bxf7 {[%clk 0:01:27.9]} 17. e6 {[%clk 0:01:56.3]} 17... Be8 {[%clk
0:01:24.5]} 18. Qa6 {[%clk 0:01:52.9]} 18... c4 {[%clk 0:01:19.7]} 19. Ba5
{[%clk 0:01:50.4]} 19... Qc8 {[%clk 0:01:12.2]} 0-1